Cogmind - Beta 12 *** ADVENTURER MODE // 2023.09.20 @ 15:49:51 Player: Jules Verne Result: Self-destructed Performance ------------- Evolutions (2) 1000 Regions Visited (3) 600 Robots Destroyed (25) 125 Value Destroyed (727) 727 Prototype IDs (2) 40 Alien Tech Used (0) 0 Bonus (0) 0 TOTAL SCORE: 2492 Bonus ------- None Cogmind --------- Core Integrity 314/550 Matter 73/300 Energy 41/100 System Corruption 0% Temperature Cool (18) Movement Treading (170) Location -8/Materials Parts ------- > --- POWER (1) -------- (None) > --- PROPULSION (2) --- Armored Treads > --- UTILITY (6) ------ Structural Scanner Advanced Visual Processing Unit Sensor Array Improved Power Shielding Utility Shielding > --- WEAPON (2) ------- (None) > --- INVENTORY (5) ---- Armored Treads Flight Unit Particle Gun Peak State ------------ > --- POWER ------------ Light Ion Engine > --- PROPULSION ------- Armored Treads Armored Treads > --- UTILITY ---------- Structural Scanner Advanced Visual Processing Unit Sensor Array Improved Power Shielding Utility Shielding > --- WEAPON ----------- Rocket Launcher > --- INVENTORY -------- Armored Treads Flight Unit Particle Gun [Rating: 18] Favorites ----------- Power Light Ion Engine Engine Light Ion Engine Propulsion Aluminum Leg Treads Armored Treads Leg Aluminum Leg Wheel Compact Wheel Hover Unit Hover Unit Flight Unit Flight Unit Utility Small Storage Unit Device Structural Scanner Storage Small Storage Unit Processor Advanced Visual Processing Unit Protection Improved Power Shielding Weapon Particle Gun Energy Gun Particle Gun Energy Cannon EM Pulse Cannon Ballistic Gun Assault Rifle Launcher Rocket Launcher Special Melee Weapon Datajack Build | -11 -10 -9 -8 ------- Run | Jun Mat Mat Mat Slots Evolved 4 | . . 2 2 Power . | . . . . Propulsion . | . . . . Utility 4 | . . 2 2 Weapon . | . . . . Parts Attached 35 | 6 10 8 11 Power 3 | 1 1 . 1 Engine 3 | 1 1 . 1 Core . | . . . . Reactor . | . . . . Propulsion 12 | 2 4 2 4 Treads 3 | . . . 3 Leg 2 | . 2 . . Wheel 4 | 2 . 2 . Hover 2 | . 2 . . Flight 1 | . . . 1 Utility 9 | 1 1 3 4 Device 3 | . . 1 2 Storage 1 | 1 . . . Processor 3 | . 1 1 1 Hackware . | . . . . Protection 2 | . . 1 1 Artifact . | . . . . Weapon 11 | 2 4 3 2 Energy Gun 3 | . 3 . . Energy Cannon 1 | . . . 1 Ballistic Gun 2 | 2 . . . Ballistic Cannon . | . . . . Launcher 4 | . 1 2 1 Special Weapon . | . . . . Impact Weapon . | . . . . Slashing Weapon . | . . . . Piercing Weapon . | . . . . Special Melee Weapon 1 | . . 1 . Unidentified Prototypes . | . . . . Parts Lost 20 | . 5 11 4 Power 3 | . 1 1 1 Propulsion 7 | . 2 4 1 Utility 3 | . . 3 . Weapon 7 | . 2 3 2 Highest Loss Streak 10 | . 3 10 4 To Critical Strikes . | . . . . Average Slot Usage (%) 78 | . 73 91 62 Engine 11 | . 13 9 8 Treads 2 | . . . 14 Leg 7 | . 1 19 . Wheel 3 | . 6 . . Hover 2 | . 5 . . Device 5 | . . 9 10 Storage 10 | . 14 10 . Processor 10 | . 10 10 7 Protection 6 | . . 10 18 Energy Gun 7 | . 12 4 . Ballistic Gun 3 | . 6 . . Launcher 6 | . 2 13 2 Naked Turns . | . . . . Heaviest Build 19 | 14 14 19 14 Greatest Support 40 | 32 32 24 40 Greatest Overweight (x) 4 | . 4 2 4 Average Overweight (x) . | . 1 . . Largest Inventory Capacity 8 | 8 8 8 5 Average Capacity 7 | 7 8 7 5 Most Carried 8 | 2 7 8 4 Average Carried 4 | . 4 7 2 Final Capacity 8 | 8 8 5 5 Final Carried 7 | . 7 5 3 Class Distribution -------------------- 74% | Mutant 25% | Scavenger-Mutant Dominant Class ---------------- Scavenger-Mutant | -10/Materials Mutant | -9/Materials Mutant | -8/Materials Resources | -11 -10 -9 -8 ----------- Run | Jun Mat Mat Mat Matter Collected 661 | 227 274 101 59 Remotely . | . . . . Salvage Created 636 | . 460 176 . Parts 50 | . 30 17 3 Haulers Intercepted 1 | . 1 . . Recyclers Shooed . | . . . . Parts Field Recycled . | . . . . Retrieved Matter . | . . . . Parts Self-Destructed . | . . . . Prevented . | . . . . Kills | -11 -10 -9 -8 ------- Run | Jun Mat Mat Mat Combat Hostiles Destroyed 16 | . 8 8 . Guns 8 | . 7 1 . AOE 8 | . 1 7 . Classes Destroyed 8 | . 4 3 1 Worker 2 | . 1 1 . Builder 1 | . . . 1 Tunneler 1 | . . 1 . Hauler 1 | . 1 . . Watcher 4 | . 3 1 . Grunt 13 | . 8 5 . Brawler 1 | . . 1 . Sentry 2 | . . 2 . Best Kill Streak 4 | . 4 4 1 Combat Bots Only 3 | . 3 2 . Max Kills in Single Turn 2 | . 1 2 1 Gunslinging . | . . . . Exploded 1 | . 1 1 . Melee . | . . . . Uniques/NPCs Destroyed . | . . . . Combat | -11 -10 -9 -8 -------- Run | Jun Mat Mat Mat Damage Taken 2788 | . 661 1097 1030 Core 769 | . 195 338 236 Absorbed by Shields . | . . . . Redirected to Shielding 95 | . . 20 75 Core Remaining (%) 45 | 100 22 15 . Volleys Fired 90 | . 68 18 4 Largest 2 | . 2 2 1 Hottest 95 | . 40 95 63 Shots Fired 112 | . 73 35 4 Gun 84 | . 73 11 . Cannon 3 | . . . 3 Launcher 25 | . . 24 1 Special . | . . . . Kinetic 65 | . 65 . . Thermal 19 | . 8 11 . Explosive 25 | . . 24 1 Electromagnetic 3 | . . . 3 Robot Hit Streak 17 | . 11 17 4 Robot Miss Streak 2 | . 2 2 . Penetration Max . | . . . . Secondary Targets . | . . . . Shots Hit Robots 78 | . 53 21 4 Core Hits 49 | . 21 26 2 Critical Kills . | . . . . Critical Parts Destroyed . | . . . . Critical Strikes 1 | . . 1 . Burn 1 | . . 1 . Melee Attacks . | . . . . Impact . | . . . . Slashing . | . . . . Piercing . | . . . . Sneak Attacks . | . . . . Combat Hostiles . | . . . . Follow-up Attacks . | . . . . Damage Inflicted 2031 | . 779 1145 107 Guns 764 | . 667 97 . Cannons 65 | . . . 65 Explosions 1191 | . 112 1048 31 Melee . | . . . . Ramming 11 | . . . 11 Kinetic 588 | . 588 . . Thermal 288 | . 191 97 . Explosive 1079 | . . 1048 31 Electromagnetic 65 | . . . 65 Impact . | . . . . Slashing . | . . . . Piercing . | . . . . Highest Corruption . | . . . . Average Corruption . | . . . . Corruption Purged . | . . . . Corruption Blocked . | . . . . Overload Shots . | . . . . Overflow Damage 33 | . 8 25 . Projectiles . | . . . . Explosions 33 | . 8 25 . Melee . | . . . . Knockbacks . | . . . . Impact . | . . . . Kinetic . | . . . . Secondary . | . . . . Self-Inflicted Damage 160 | . 76 84 . Shots 7 | . 1 6 . Rammed 6 | . . . 6 Targets Rammed 7 | . . . 7 Kicked . | . . . . Crushed 1 | . . . 1 Highest Temperature 114 | . 54 114 75 Average Temperature 28 | . 16 35 34 Received Heat Transfer 1419 | . 465 468 486 Siege Activations . | . . . . Robots Corrupted . | . . . . Combat Hostiles . | . . . . Parts Fried . | . . . . Impact Corruptions . | . . . . Robots Melted . | . . . . Combat Hostiles . | . . . . Parts Melted . | . . . . Heat Transferred 521 | . 225 296 . Parts Sabotaged . | . . . . Parts Stolen . | . . . . Parts Stripped . | . . . . Power Chain Reactions . | . . . . Missiles Intercepted . | . . . . Alert | -11 -10 -9 -8 ------- Run | Jun Mat Mat Mat Peak Influence 384 | . 276 384 134 Initial 53 | . . . 53 Average 129 | . 135 151 86 Maximum Alert Level 1 | . 1 1 . Low Security (%) 76 | 100 70 73 100 Level 1 23 | . 29 26 . Level 2 . | . . . . Level 3 . | . . . . Level 4 . | . . . . Level 5 . | . . . . High Security . | . . . . Max Security . | . . . . Squads Dispatched 5 | . 1 4 . Investigation 1 | . 1 . . Extermination . | . . . . Reinforcement 4 | . . 4 . Assault . | . . . . Garrison . | . . . . Intercept . | . . . . Searches Triggered . | . . . . Construction Impeded 1 | . . 1 . Haulers Reinforced . | . . . . Active Scanning Responses . | . . . . Cargo Convoy Interrupts . | . . . . Stealth | -11 -10 -9 -8 --------- Run | Jun Mat Mat Mat Distress Signals 3 | . 2 1 . Communications Jammed . | . . . . Distress Signals . | . . . . Times Spotted 49 | . 15 25 9 Peak Tracking Total 10 | . 5 10 8 Tactical Retreats 5 | . 1 3 1 Traps | -11 -10 -9 -8 ------- Run | Jun Mat Mat Mat Traps Triggered 1 | . 1 . . Indirectly . | . . . . Trap Hack Attempts . | . . . . Triggered . | . . . . Disarmed . | . . . . Reprogrammed . | . . . . Reused . | . . . . Traps Extracted . | . . . . Installed . | . . . . Triggered . | . . . . Machines | -11 -10 -9 -8 ---------- Run | Jun Mat Mat Mat Machines Disabled 4 | . 2 2 . Max in Single Turn 2 | . 2 1 . Machines Repaired . | . . . . Machines Sabotaged . | . . . . Overloaded Fab Kills . | . . . . Hacking | -11 -10 -9 -8 --------- Run | Jun Mat Mat Mat Machines Accessed 1 | . . . 1 Terminals 1 | . . . 1 Fabricators . | . . . . Repair Stations . | . . . . Recycling Units . | . . . . Scanalyzers . | . . . . Garrison Access . | . . . . Total Hacks 4 | . . . 4 Successful 3 | . . . 3 Failed 1 | . . . 1 Catastrophic . | . . . . Database Lockouts . | . . . . Manual . | . . . . Terminals 4 | . . . 4 Fabricators . | . . . . Repair Stations . | . . . . Recycling Units . | . . . . Scanalyzers . | . . . . Garrison Access . | . . . . Terminal Hacks 3 | . . . 3 Prototype ID Bank 1 | . . . 1 Emergency Access Points 1 | . . . 1 Registered Components 1 | . . . 1 Fabricator Hacks . | . . . . Repair Station Hacks . | . . . . Recycling Unit Hacks . | . . . . Scanalyzer . | . . . . Garrison Access Hacks . | . . . . Unauthorized Hacks . | . . . . Terminals . | . . . . Fabricators . | . . . . Repair Stations . | . . . . Recycling Units . | . . . . Scanalyzers . | . . . . Garrison Access . | . . . . Data Cores Recovered . | . . . . Used . | . . . . Hacking Detections 1 | . . . 1 Full Trace Events . | . . . . Feedback Events . | . . . . Feedback Blocked . | . . . . Robot Schematics Acquired . | . . . . Robots Built . | . . . . Authchips . | . . . . Time . | . . . . Total Robot Build Rating . | . . . . Part Schematics Acquired . | . . . . Parts Built . | . . . . Authchips . | . . . . Time . | . . . . Total Part Build Rating . | . . . . Parts Repaired . | . . . . Time . | . . . . Parts Recycled . | . . . . Recycled Matter . | . . . . Retrieved Matter . | . . . . Retrieved Components . | . . . . Parts Scanalyzed . | . . . . Part Schematics Acquired . | . . . . Parts Damaged . | . . . . Bothacking | -11 -10 -9 -8 ------------ Run | Jun Mat Mat Mat Used RIF Installer . | . . . . Robots Hacked . | . . . . Non-combat . | . . . . Combat . | . . . . Robot Hacks Applied . | . . . . Relay Couplers Released . | . . . . Fabnet Peak Effective % . | . . . . Robots Rewired . | . . . . Allies Hacked . | . . . . Hacks Repelled . | . . . . Allies | -11 -10 -9 -8 -------- Run | Jun Mat Mat Mat Total Allies . | . . . . Largest Group . | . . . . Highest-Rated Group . | . . . . Highest-Rated Ally . | . . . . Total Orders . | . . . . Ally Attacks . | . . . . Total Damage . | . . . . Kills . | . . . . Allies Corrupted . | . . . . Allies Melted . | . . . . Intel | -11 -10 -9 -8 ------- Run | Jun Mat Mat Mat Robot Analysis Total . | . . . . Derelict Logs Recovered . | . . . . Drone Launches . | . . . . Drone Recoveries . | . . . . Exploration | -11 -10 -9 -8 ------------- Run | Jun Mat Mat Mat Turns Passed 1733 | 63 823 601 246 Spaces Moved 1075 | 58 492 396 129 Core 198 | 9 170 17 2 Treads 103 | . . . 103 Legs 372 | . 26 346 . Wheels 175 | 49 93 33 . Hover 203 | . 203 . . Flight 24 | . . . 24 Fastest Speed 50 | 50 56 50 120 Average Speed 127 | 92 130 117 161 Slowest Speed 250 | 100 250 150 250 Overloaded Moves . | . . . . Propulsion Burnouts . | . . . . Robots Hopped . | . . . . Cave-ins Triggered . | . . . . Exploration Rate (%) 36 | 4 68 54 20 Regions Visited 3 Branch Regions . Pre-discovered Areas . | . . . . Known Exits Taken . | . . . . Unknown Exits Taken 3 | 1 1 1 . Scrap Searched . | . . . . Spaces Dug . | . . . . Terrain Destroyed 197 | . 36 151 10 Melee . | . . . . Projectile . | . . . . AOE 197 | . 36 151 10 Terrain Rammed . | . . . . Walls Destroyed . | . . . . Machines Disabled . | . . . . Actions | -11 -10 -9 -8 --------- Run | Jun Mat Mat Mat Total 1312 | 65 597 496 154 Wait 83 | . 13 69 1 Move 1072 | 57 491 395 129 Hop . | . . . . Pick Up 17 | 2 11 3 1 Fast Attach 22 | 4 6 5 7 Attach 10 | 2 3 1 4 Detach 1 | . . . 1 Swap 3 | . 1 2 . Drop 7 | . 4 3 . Fire 90 | . 68 18 4 Melee . | . . . . Ram . | . . . . Kick . | . . . . Crush 7 | . . . 7 Escape Stasis . | . . . . Rewire . | . . . . Trap . | . . . . Miscellaneous . | . . . . Route ------- -11/Junkyard -10/Materials (discovered 3 exits: [*Mat x2] / [*Min]) -9/Materials (discovered 2 exits: *Mat / [*Min]) -8/Materials History --------- Turn | Location | Event 22 | -11/Junkyard | Discovered new exit (range 16) 64 | -11/Junkyard | Entered Materials 257 | -10/Materials | Discovered new exit (range 17) 332 | -10/Materials | Discovered new exit (range 17) 432 | -10/Materials | Core integrity fell below 50% 445 | -10/Materials | Lost 3 parts (2n1w) 786 | -10/Materials | Discovered new exit (range 4) 887 | -10/Materials | Entered another Materials area 887 | -9/Materials | Evolved 2 slots: Utility x2 1062 | -9/Materials | Build established: Mutant 1254 | -9/Materials | Discovered new exit (range 6) 1467 | -9/Materials | Core integrity fell below 50% 1484 | -9/Materials | Discovered new exit (range 7) 1486 | -9/Materials | Core integrity fell below 20% 1488 | -9/Materials | Entered another Materials area 1488 | -8/Materials | Evolved 2 slots: Utility x2 1516 | -8/Materials | Lost 10 parts (1p4n3u2w) 1734 | -8/Materials | Self-destructed Last Messages --------------- 01644_ Acquired Rocket Launcher. 01659_ Crushed U-05 Engineer. 01659_ U-05 Engineer destroyed. 01668_ K-01 Serf cleans the Matter Pump. 01669_ Slammed into M-13 Machinist. 01671_ K-01 Serf cleans the Matter Pump. 01686_ Critical hit (Burn: +37). 01693_ Slammed into L-31 Rogue. 01700_ Acquired Sensor Array. 01702_ Slammed into L-31 Rogue. 01716_ Rocket Launcher destroyed. 01716_ Arm. Treads severed. 01720_ Acquired EM Pulse Cannon. 01726_ Arm. Treads destroyed. 01726_ L-31 Rogue destroyed. 01728_ Acquired 59 matter. 01732_ Lgt. Ion Engine destroyed. 01733_ Acquired Arm. Treads. 01733_ K-01 Serf collects debris. 01734_ EM Pulse Cannon destroyed. Map ----- +----------------------------------------------------+ | ?????????????????????????????????????????????????? | | ?????????????????????????????????????????????????? | | ?????????????????????????????????????????????????? | | ?????????????????????????????????????????????????? | | ?????????????????????????????????????????????????? | | ?????????????????????????????????????????????????? | | ?????????????????????????????????????????????????? | | ?????????????????????????????????????????????????? | | ?????????????????????????????????????????????????? | | ?????????????????????????????????????????????????? | | ?????????????????????????????????????????????????? | | ?????????????????????????????????????????????????? | | ?????????????????????????????????????????????????? | | ??????????????????????????????? ????????????? | | ???????????????????????????????###+##????????????? | | ??????????????????????????????? ^ ????????????? | | ???????????????????????????????? ????????????? | | ???????????????????????????????? ""?? ???? ???? | | ???????????????????????????????? """ ?""" ???? | | ??????????????????????????????? """ """ ????? | | ???????????????????????????????## ##??? | | ??????????????????????" ### ##### ##??? | | ??????????????????????#####+##### """ """ ##??? | | ??????????????????????##=/ # """ """ ##??? | | ??????????????????????##* ! # """ """ ##??? | | ??????????????????????## @ g k # ##### | | ??????????????????????## # ##### | | ??????????????????????## Y# | | ??????????????????????## Y/ | | ??????????????????????## # w | | ??????????????????????## g # ####? | | ??????????????????????## [ # ###############? | | ??????????????????????########### #############??? | | ??????????????????????########### ##?????????????? | | ???????????????????????????????## ##?????????????? | | ???????????????????????????????## ##????????###### | | ???????????????????????????????## ################ | | ???????????????????????????????##*############ | | ???????????????????????????????##!## #### | | ???????????????????????????????##|## #### | | ???????????????????????????????## ## / + | | ???????????????????????????????## ## #### | | ????????????????????????????##### ## #### | | ????????????????????????????##### ## ######## | | ????????????????????????????## ###+ ###### | | ????????????????????????????## | | ????????????????????????????## | | ????????????????????????????## | | ????????????????????????????## ### ## # # | | ????????????????????????????### ############ # | +----------------------------------------------------+ Best States ------------- Heat Dissipation 31 Energy Generation 10 Energy Capacity 250 Matter Stores 300 Matter Capacity 300 Sight Range 20 Robot Scan Range 14 Terrain Scan Density 10 Resistance: KI 20 Resistance: TH 20 Resistance: EX 20 Resistance: EM 20 Resistance: I 20 Resistance: S 20 Resistance: P 20 Power Shielding 66 Utility Shielding 33 Evasion (%) 55 Recoil Reduction 2 Offensive Hacking 10 Item Schematics ----------------- None Robot Schematics ------------------ None Fabricated ------------ Nothing Alien Tech Used ----------------- None Achievements -------------- None Challenges ------------ None Game ------ Seed HardcellFrostAutogun Manual? 0 Play Time 00:18:54 Cumulative 24.0 hours Start 2023.09.20 @ 15:33:07 End 2023.09.20 @ 15:49:51 Sessions 1 Manual Loads 0 Difficulty Adventurer Special Mode None Game No. 18 Rogue 0 Adventurer 18 Explorer 0 Win Type - Total 0 Types 0/0/0/0/0/0/0/0/0 Lore% 21 Gallery% 29 Achievement% 23 Wizard Run 0 Options --------- ASCII 0 Keyboard 0 Movement Mouse Keybinds 0 Fullscreen 1 Font 18/SmallcapsGlow Map View 76x50 Tactical HUD 1 Map Filters NONE Filters NONE Steam 1 RUN: 46d23c79-d9b7-4cfa-800e-2d244e6c0921